Cogmind - Beta 16 @@@ ROGUE MODE // 2026.01.10 @ 22:54:20 Player: Legato Result: Destroyed by D-53 Grenadier with Mini Grenade Launcher Performance ------------- Evolutions (0) 0 Regions Visited (2) 400 Robots Destroyed (15) 75 Value Destroyed (283) 283 Prototype IDs (2) 40 Alien Tech Used (0) 0 Bonus (0) 0 TOTAL SCORE: 798 Bonus ------- None Cogmind --------- Core Integrity 0/250 Matter 255/300 Energy 125/125 System Corruption 0% Temperature Cool (0) Movement Walking (190) Ox1 Location -10/Mines Parts ------- > --- POWER (1) -------- Light Ion Engine > --- PROPULSION (2) --- Aluminum Leg Aluminum Leg > --- UTILITY (2) ------ Large Storage Unit Sensor Array > --- WEAPON (2) ------- (None) > --- INVENTORY (15) --- Ion Engine Ion Engine Light Treads Light Treads Aluminum Leg Aluminum Leg Aluminum Leg Aluminum Leg Aluminum Leg Large Storage Unit Visual Processing Unit Seismic Detector Tractor Beam Peak State ------------ > --- POWER ------------ Ion Engine > --- PROPULSION ------- Light Treads Light Treads > --- UTILITY ---------- Large Storage Unit Sensor Array > --- WEAPON ----------- Assault Rifle Light Assault Rifle > --- INVENTORY -------- Ion Engine Aluminum Leg Aluminum Leg Aluminum Leg Aluminum Leg Aluminum Leg Large Storage Unit Seismic Detector Tractor Beam Mining Laser [Rating: 8] Favorites ----------- Power Ion Engine Engine Ion Engine Propulsion Light Treads Treads Light Treads Leg Aluminum Leg Utility Sensor Array Device Sensor Array Storage Large Storage Unit Weapon Assault Rifle Energy Gun EM Pulse Gun Ballistic Gun Assault Rifle Special Weapon Mining Laser Build | -11 -10 -10 ------- Run | Yrd Mat Min Slots Evolved . | . . . Power . | . . . Propulsion . | . . . Utility . | . . . Weapon . | . . . Parts Attached 16 | 8 7 1 Power 2 | 1 1 . Engine 2 | 1 1 . Core . | . . . Reactor . | . . . Propulsion 5 | 2 2 1 Treads 2 | 2 . . Leg 3 | . 2 1 Wheel . | . . . Hover . | . . . Flight . | . . . Utility 4 | 2 2 . Device 2 | 1 1 . Storage 2 | 1 1 . Processor . | . . . Hackware . | . . . Protection . | . . . Artifact . | . . . Weapon 5 | 3 2 . Energy Gun 2 | 2 . . Energy Cannon . | . . . Ballistic Gun 2 | 1 1 . Ballistic Cannon . | . . . Launcher . | . . . Special Weapon 1 | . 1 . Impact Weapon . | . . . Slashing Weapon . | . . . Piercing Weapon . | . . . Special Melee Weapon . | . . . Unidentified Prototypes . | . . . Parts Lost 3 | . . 3 Power . | . . . Propulsion . | . . . Utility . | . . . Weapon 3 | . . 3 Highest Loss Streak 3 | . . 3 To Critical Strikes . | . . . Average Backups 10 | 3 9 13 Power 1 | . 1 2 Propulsion 4 | 1 4 7 Utility 3 | . 3 4 Weapon 1 | 1 1 . Tool/Special . | . . . Unused Backups 9 | . . 9 Power 1 | . . 1 Propulsion 4 | . . 4 Utility 4 | . . 4 Weapon . | . . . Tool/Special . | . . . Average Slot Usage (%) 99 | . 100 99 Engine 14 | . 14 14 Treads 17 | . 24 1 Leg 10 | . 3 26 Device 14 | . 14 14 Storage 14 | . 14 14 Energy Gun 2 | . 3 . Ballistic Gun 24 | . 24 26 Peak Build Rating 8 | 7 8 8 Average Rating 7 | 5 7 7 On Entrance 5 | . 7 8 Avg Prop Armor Cover (%) . | . . . Naked Turns . | . . . Heaviest Build 29 | 14 29 27 Greatest Support 40 | 40 40 40 Greatest Overweight (x) 1 | . 1 1 Average Overweight (x) . | . . . Largest Inventory Capacity 15 | 8 15 15 Average Capacity 12 | 7 13 15 Most Carried 14 | 6 14 14 Average Carried 10 | 3 9 13 Final Capacity 15 | 8 15 15 Final Carried 14 | 6 14 13 Class Distribution -------------------- 100% | Mutant Dominant Class ---------------- Mutant | -10/Materials Mutant | -10/Mines Resources | -11 -10 -10 ----------- Run | Yrd Mat Min Matter Collected 553 | 286 247 20 Remotely . | . . . Salvage Created 464 | 111 353 . Parts 37 | 5 32 . Haulers Intercepted . | . . . Recyclers Shooed . | . . . Parts Field Recycled . | . . . Retrieved Matter . | . . . Parts Self-Destructed . | . . . Prevented . | . . . Parts Restored . | . . . Kills | -11 -10 -10 ------- Run | Yrd Mat Min Combat Hostiles Destroyed 12 | . 11 1 Guns 11 | . 11 . Cannons 1 | . . 1 Classes Destroyed 7 | 2 4 1 Worker 1 | . 1 . Tunneler 1 | 1 . . Recycler 1 | 1 . . Watcher 1 | . 1 . Swarmer 6 | . 6 . Grunt 5 | . 5 . Assembled 1 | . . 1 Best Kill Streak 3 | 1 3 1 Combat Bots Only 3 | . 3 1 Max Kills in Single Turn 1 | 1 1 1 Gunslinging . | . . . Exploded . | . . . Melee . | . . . Uniques/NPCs Destroyed . | . . . Combat | -11 -10 -10 -------- Run | Yrd Mat Min Hostile Shots Fired 81 | . 65 16 Missed 22 | . 19 3 Hits 59 | . 46 13 Melee 5 | . . 5 Projectile 54 | . 46 8 AOE 6 | . . 6 Critical Strikes 2 | . 1 1 Damage Taken 831 | . 431 400 Core 252 | . 108 144 Absorbed by Shields . | . . . Core Remaining (%) 100 | 100 . . Volleys Fired 48 | 4 38 6 Largest 2 | 2 2 2 Hottest 120 | 80 100 120 Shots Fired 93 | 8 74 11 Gun 87 | 8 72 7 Cannon . | . . . Launcher . | . . . Special 6 | . 2 4 Kinetic 74 | 2 65 7 Thermal 10 | 4 2 4 Explosive . | . . . Electromagnetic 9 | 2 7 . Robot Hit Streak 5 | 3 5 2 Robot Miss Streak 6 | 2 6 2 Penetration Max . | . . . Secondary Targets 2 | . 2 . Max Gunslinging Chain 1 | . 1 . Shots Hit Robots 49 | 5 40 4 Core Hits 24 | 3 19 2 Critical Kills 1 | . 1 . Critical Parts Destroyed . | . . . Critical Strikes 2 | . 2 . Destroy 1 | . 1 . Corrupt 1 | . 1 . Melee Attacks . | . . . Impact . | . . . Slashing . | . . . Piercing . | . . . Sneak Attacks . | . . . Combat Hostiles . | . . . Follow-up Attacks . | . . . Damage Inflicted 588 | 58 460 70 Guns 540 | 58 460 22 Cannons . | . . . Explosions . | . . . Melee . | . . . Ramming . | . . . Kinetic 450 | 11 417 22 Thermal 83 | 35 . 48 Explosive . | . . . Electromagnetic 55 | 12 43 . Impact . | . . . Slashing . | . . . Piercing . | . . . Highest Corruption . | . . . Average Corruption . | . . . Corruption Purged . | . . . Corruption Blocked . | . . . Overload Shots . | . . . Overflow Damage . | . . . Projectiles . | . . . Explosions . | . . . Melee . | . . . Knockbacks . | . . . Impact . | . . . Kinetic . | . . . Secondary . | . . . Self-Inflicted Damage . | . . . Shots . | . . . Rammed . | . . . Targets Rammed . | . . . Kicked . | . . . Crushed . | . . . Highest Temperature 120 | 6 36 120 Average Temperature 29 | 3 11 55 Received Heat Transfer 209 | . 129 80 Siege Activations . | . . . Martial Activations . | . . . Shielding Activations . | . . . Robots Disrupted . | . . . Combat Hostiles . | . . . Robots Corrupted . | . . . Combat Hostiles . | . . . Parts Fried . | . . . Impact Corruptions . | . . . Robots Melted . | . . . Combat Hostiles . | . . . Parts Melted . | . . . Heat Transferred 175 | 75 . 100 Parts Sabotaged . | . . . Parts Stolen . | . . . Parts Stripped . | . . . Power Chain Reactions . | . . . Alert | -11 -10 -10 ------- Run | Yrd Mat Min Maximum Alert Level . | . . . Low Security (%) 100 | 100 100 100 Level 1 . | . . . Level 2 . | . . . Level 3 . | . . . Level 4 . | . . . Level 5 . | . . . High Security . | . . . Max Security . | . . . Peak Influence 123 | 5 123 37 Initial 37 | . . 37 Average 26 | . 40 5 Influence Increases 350 | 10 339 1 Destroy 0b10 Robot/C 220 | . 220 . Destroy 0b10 Robot/NC 20 | 10 10 . Destroy Leader 42 | . 42 . Successful Hack 21 | . 21 . Disable Machine 15 | . 15 . Destroy Structure 2 | . 1 1 Lose Combat Pursuer 30 | . 30 . Influence Decreases 350 | 10 242 98 Entered New Map 60 | . . 60 Time Decay 290 | 10 242 38 Squads Dispatched 2 | . 2 . Investigation 1 | . 1 . Extermination . | . . . Reinforcement 1 | . 1 . Assault . | . . . Garrison . | . . . Intercept . | . . . Searches Triggered . | . . . Construction Impeded . | . . . Haulers Reinforced . | . . . Active Scanning Responses . | . . . Cargo Convoy Interrupts . | . . . Stealth | -11 -10 -10 --------- Run | Yrd Mat Min Distress Signals 2 | . 2 . Communications Jammed . | . . . Distress Signals . | . . . Times Spotted 38 | . 17 21 Peak Tracking Total 14 | . 4 14 Tactical Retreats 2 | . 2 . Traps | -11 -10 -10 ------- Run | Yrd Mat Min Traps Triggered . | . . . Indirectly . | . . . Trap Hack Attempts . | . . . Triggered . | . . . Disarmed . | . . . Reprogrammed . | . . . Reused . | . . . Traps Extracted . | . . . Installed . | . . . Triggered . | . . . Machines | -11 -10 -10 ---------- Run | Yrd Mat Min Machines Disabled 1 | . 1 . Max in Single Turn 1 | . 1 . Machines Repaired . | . . . Machines Dismantled . | . . . Machines Sabotaged . | . . . Overloaded Fab Kills . | . . . Hacking | -11 -10 -10 --------- Run | Yrd Mat Min Machines Accessed 5 | . 5 . Terminals 4 | . 4 . Fabricators . | . . . Repair Stations . | . . . Recycling Units 1 | . 1 . Scanalyzers . | . . . Garrison Access . | . . . Total Hacks 11 | . 11 . Successful 5 | . 5 . Failed 6 | . 6 . Catastrophic 1 | . 1 . Database Lockouts . | . . . Manual 3 | . 3 . Terminals 8 | . 8 . Fabricators . | . . . Repair Stations . | . . . Recycling Units 3 | . 3 . Scanalyzers . | . . . Garrison Access . | . . . Terminal Hacks 4 | . 4 . Prototype ID Bank 1 | . 1 . Branch Access Points 1 | . 1 . Locate Traps 1 | . 1 . Zone Layout 1 | . 1 . Fabricator Hacks . | . . . Repair Station Hacks . | . . . Recycling Unit Hacks 1 | . 1 . Report Inventory 1 | . 1 . Scanalyzer . | . . . Garrison Access Hacks . | . . . Unauthorized Hacks . | . . . Terminals . | . . . Fabricators . | . . . Repair Stations . | . . . Recycling Units . | . . . Scanalyzers . | . . . Garrison Access . | . . . Data Cores Recovered . | . . . Used . | . . . Hacking Detections 4 | . 4 . Full Trace Events 1 | . 1 . Feedback Events . | . . . Feedback Blocked . | . . . Robot Schematics Acquired . | . . . Robots Built . | . . . Authchips . | . . . Time . | . . . Total Robot Build Rating . | . . . Part Schematics Acquired . | . . . Parts Built . | . . . Authchips . | . . . Time . | . . . Total Part Build Rating . | . . . Part Studies Acquired . | . . . Parts Repaired . | . . . Time . | . . . Parts Recycled . | . . . Recycled Matter . | . . . Retrieved Matter . | . . . Retrieved Components . | . . . Parts Scanalyzed . | . . . Part Schematics Acquired . | . . . Parts Damaged . | . . . Bothacking | -11 -10 -10 ------------ Run | Yrd Mat Min Used RIF Installer . | . . . Robots Hacked . | . . . Non-combat . | . . . Combat . | . . . Robot Hacks Applied . | . . . Relay Couplers Released . | . . . Fabnet Peak Effective % . | . . . Robots Rewired . | . . . Allies Hacked . | . . . Hacks Repelled . | . . . Allies | -11 -10 -10 -------- Run | Yrd Mat Min Total Allies . | . . . Largest Group . | . . . Highest-Rated Group . | . . . Highest-Rated Ally . | . . . Total Orders . | . . . Ally Attacks . | . . . Total Damage . | . . . Kills . | . . . Allies Corrupted . | . . . Allies Melted . | . . . Intel | -11 -10 -10 ------- Run | Yrd Mat Min Active Infowar (turns) 1102 | 51 727 324 Sensors 999 | . 675 324 Seismic 103 | 51 52 . Robot Analysis Total . | . . . Derelict Logs Recovered . | . . . Drone Launches . | . . . Drone Recoveries . | . . . Exploration | -11 -10 -10 ------------- Run | Yrd Mat Min Turns Passed 1198 | 147 727 324 Spaces Moved 574 | 80 339 155 Core 9 | 9 . . Treads 361 | 71 287 3 Legs 204 | . 52 152 Wheels . | . . . Hover . | . . . Flight . | . . . Fastest Speed 50 | 50 160 160 Average Speed 168 | 147 164 189 Slowest Speed 190 | 160 190 190 Overloaded Moves . | . . . Propulsion Burnouts . | . . . Robots Hopped . | . . . Potential Cave-ins . | . . . Cave-ins Triggered . | . . . Exploration Rate (%) 33 | 6 58 35 Regions Visited 2 Branch Regions 1 Pre-discovered Areas . | . . . Known Exits Taken 1 | . 1 . Unknown Exits Taken 1 | 1 . . Scrap Searched 1 | . . 1 Spaces Dug 1 | . 1 . Terrain Destroyed 3 | . 1 2 Melee . | . . . Projectile 3 | . 1 2 AOE . | . . . Terrain Rammed . | . . . Walls Destroyed . | . . . Machines Disabled . | . . . Actions | -11 -10 -10 --------- Run | Yrd Mat Min Total 698 | 97 435 166 Wait 32 | . 32 . Move 572 | 79 338 155 Hop . | . . . Pick Up 15 | 6 9 . Fast Attach 7 | 7 . . Attach 1 | . . 1 Detach . | . . . Swap 18 | 1 13 4 Drop 5 | . 5 . Fire 48 | 4 38 6 Melee . | . . . Ram . | . . . Kick . | . . . Crush . | . . . Escape Stasis . | . . . Rewire . | . . . Trap . | . . . Miscellaneous . | . . . Route ------- -11/Scrapyard -10/Materials (discovered 2 exits: [*Mat] / *Min) -10/Mines (discovered 1 exit: [*Mat]) History --------- Turn | Location | Event 32 | -11/Scrapyard | Discovered new exit (range 15) 148 | -11/Scrapyard | Entered Materials 300 | -10/Materials | Build established: Mutant 637 | -10/Materials | Discovered new exit (range 7) 648 | -10/Materials | Derelicts attacked the area 798 | -10/Materials | Identified exit to Mines 875 | -10/Materials | Entered Mines 900 | -10/Mines | Discovered new exit (range 10) 1139 | -10/Mines | Assembled infested the area 1144 | -10/Mines | Assisted by a Guerilla fighting off Assembled 1160 | -10/Mines | Core integrity fell below 50% 1177 | -10/Mines | Core integrity fell below 20% 1199 | -10/Mines | Destroyed by D-53 Grenadier with Mini Grenade Launcher Last Messages --------------- 01181_ as-92486 destroyed. 01183_ The unstable cave ceiling collapses. 01183_ as-21481 destroyed. 01183_ Mining Laser destroyed. 01184_ U-05 Engineer destroyed. 01185_ as-07300 destroyed. 01185_ as-91220 destroyed. 01185_ as-99267 destroyed. 01185_ as-12965 destroyed. 01185_ SG-R18(h) destroyed. 01187_ as-19295 destroyed. 01187_ as-04936 destroyed. 01187_ as-60037 destroyed. 01187_ as-97554 destroyed. 01187_ as-43052 destroyed. 01189_ as-55996 destroyed. 01189_ as-01470 destroyed. 01193_ The unstable cave ceiling collapses. 01194_ Lgt. Assault Rifle destroyed. 01195_ K-01 Serf collects debris. Map ----- +----------------------------------------------------+ | ???????????????????????????# #??????# #????? | | ???????????????????????????# #??????# #####????? | | ???????????????????????????# #??????# #????????? | | ???????????????????????????# #??????# #????????? | | ???????????????????????????# #??????# #????????? | | ???????????????????????????# #??????# #????????? | | ???????????????????# ####### ###????# #????????? | | ???????????????????# #????# #????????? | | ????????????????????########## #????# #????????? | | ?????????????????????????????# ###### #????????? | | ?????????????????????????????# #????????? | | ?????????????????????????????# ####????????? | | ?????????????????????????????##### #???????????? | | ?????????? ????????????????????### ####????????? | | ??????????? ?????????########### #????????? | | ??????????? ?????? """ #????????? | | ???????????? ????? """ #????????? | | ????????????? ??????############ """ #????????? | | ?????????????# ????????????????# #????????? | | ?????????#####?#???????????????### ####????????? | | ??????? # % #????????????????# #???????????? | | ????# = ########???????# #???????????? | | ????# # % # # ##??????# ##??????????? | | ?????# % # k # ##????## ##??#####??? | | ?????? % % ###### #### ##?? | | ?????? d @ #?? | | ??????# ###### ### #?? | | ???????# ##????# #?## #?? | | ????? #### #### # ##?????## ##??# #?? | | ????###??????#????########???????####???# #?? | | ????????????????????????????????????????## ##?? | | ??????????????????????????????????????????###??? | | ???????????????????????????????????????????????? | | ???????????????????????????????????????????????? | | ???????????????????????????????????????????????? | | ???????????????????????????????????????????????? | | ???????????????????????????????????????????????? | | | | | | | | | | | | | | | | | | | | | | | | | | | +----------------------------------------------------+ Best States ------------- Heat Dissipation 25 Energy Generation 10 Energy Capacity 250 Matter Stores 300 Matter Capacity 300 Sight Range 16 Robot Scan Range 14 Terrain Scan Density 10 Evasion (%) 50 Recoil Reduction 2 Item Schematics ----------------- None Robot Schematics ------------------ None Fabricated ------------ Nothing Repaired ---------- Nothing Studied --------- None Alien Tech Used ----------------- None Achievements -------------- None Challenges ------------ None Game ------ Seed ProcessingGyrokineticSource Manual? 0 Play Time 00:15:32 Cumulative 48.4 hours Start 2026.01.10 @ 22:27:48 End 2026.01.10 @ 22:54:20 Sessions 3 Manual Loads 0 Difficulty Rogue Special Mode None Game No. 55 Rogue 55 Adventurer 0 Explorer 0 Win Type - Total 1 Types 1/0/0/0/0/0/0/0/0/0 Lore% 38 Gallery% 37 Achievement% 28 Wizard Run 0 Options --------- Layout 0 ASCII 0 Keyboard 0 Movement Arrows Keybinds 1 Fullscreen 1 Font 18/X11 Map View 76x50 Zoom Use 0% Tactical HUD 1 Map Filters NONE Filters NONE Steam 1 RUN: 8cb21489-702d-4548-aa79-b50ebaeb0fab